bitfinex/quotes_ETHUSD_20220226
["timestamp","ask_amount","ask_price","bid_price","bid_amount"]
[1645902373958,1.0,2815.5,2814.9,0.3086]
[1645902374155,0.25,2816.3,2814.9,3.8086]
[1645902374357,0.25,2816.3,2815.1,0.3086]
[1645902374558,0.25,2816.3,2815.5,10.95]
[1645902374754,0.007,2816.4,2815.7,11.2586]
[1645902374954,0.007,2816.4,2815.9,0.54824256]
[1645902375153,0.007,2816.4,2816.1,0.3086]
[1645902375554,0.007,2816.4,2816.3,0.3086]
[1645902375993,0.007,2816.4,2816.3,12.7966]
[1645902376393,0.007,2816.4,2816.3,14.23444472]
[1645902376993,0.007,2816.4,2816.3,14.18444472]
[1645902377398,0.007,2816.4,2816.3,13.92584472]
[1645902377603,0.007,2816.4,2816.3,12.488]
[1645902378399,0.157,2816.6,2816.3,12.488]
[1645902378598,0.157,2816.6,2816.3,12.438]
[1645902379400,0.88825,2816.5,2816.3,12.438]
[1645902379654,3.8,2816.4,2816.3,12.438]
[1645902379863,3.8,2816.4,2814.7,0.01396029]
[1645902379864,0.3586,2816.2,2814.7,0.01396029]
[1645902380057,0.3586,2815.7,2814.5,7.36]
[1645902380261,1.0,2815.3,2814.5,7.36]
[1645902380460,1.0,2815.3,2814.7,0.02009679]
[1645902380461,4.82191,2815.2,2814.7,0.02009679]
[1645902380658,2.28451,2815.2,2814.7,0.02009679]
[1645902380858,1.0,2814.9,2814.7,0.02009679]
[1645902381067,0.433,2814.8,2814.7,0.02009679]
[1645902381260,1.733,2814.8,2814.7,0.02009679]
[1645902381457,1.733,2814.8,2813.9,1.07135969]
[1645902381458,0.733,2814.8,2813.9,1.07135969]
[1645902381657,0.25,2814.7,2813.4,3.2924]
[1645902381861,0.25,2814.7,2814.6,0.00502354]
[1645902382066,3.6690873,2815.0,2814.6,0.00502354]
[1645902382067,1.0,2815.0,2814.6,0.00502354]
[1645902382268,0.883123,2815.8,2814.6,0.00502354]
[1645902382269,0.25,2815.6,2814.6,0.00502354]
[1645902382462,1.0,2815.4,2814.6,0.00502354]
[1645902382862,1.3,2815.4,2814.6,0.00502354]
[1645902383068,1.0,2815.4,2814.6,0.00502354]
[1645902383302,1.0,2815.4,2813.8,0.43933894]
[1645902383700,1.0,2815.4,2814.1,0.88856]
[1645902384311,1.88858,2815.4,2813.8,2.21644894]
[1645902384510,1.88858,2815.4,2814.6,1.26795128]
[1645902384904,1.88858,2815.4,2814.1,0.88855]
[1645902385106,1.88858,2815.4,2814.1,1.24715]
[1645902385305,0.00155197,2815.1,2813.9,0.3586]
[1645902385505,1.14020197,2815.1,2813.9,0.3586]
[1645902385807,1.14020197,2815.1,2814.3,1.14686769]
[1645902386010,1.14020197,2815.1,2814.0,0.1421]
[1645902386306,1.13865,2815.1,2814.0,0.1421]
[1645902386506,0.89029197,2814.8,2813.9,0.1421]
[1645902386706,0.89029197,2814.8,2813.8,0.43933894]
[1645902387155,0.89029197,2814.8,2814.0,1.14128324]
[1645902387349,0.88874,2814.8,2814.0,1.14128324]
[1645902387751,0.00502348,2814.4,2814.1,0.00502416]
[1645902387951,0.88874,2814.8,2814.4,0.00660134]
[1645902388556,0.25,2815.1,2814.4,0.00660134]
[1645902388754,0.6086,2815.1,2814.4,0.00660134]
[1645902388957,4.7474205,2815.0,2814.2,7.06330134]
[1645902389662,1.2474205,2815.0,2814.2,7.06330134]
[1645902390057,0.00155197,2814.7,2814.2,8.44558796]
[1645902390258,0.00155197,2814.7,2814.2,7.06330134]
[1645902390656,0.3586,2814.9,2814.2,7.06330134]
[1645902390901,1.3586,2814.9,2814.2,7.06330134]
[1645902391303,0.88877,2814.7,2814.2,7.06330134]
[1645902394747,1.0,2814.9,2814.5,1.1721507]
[1645902394953,0.00154694,2814.8,2814.5,1.1721507]
[1645902395546,0.00154694,2814.8,2814.5,1.1221507]
[1645902395744,1.77707,2815.7,2814.5,1.1221507]
[1645902395952,0.88856,2815.4,2814.5,1.1221507]
[1645902396152,0.00154704,2814.8,2814.5,1.1221507]
[1645902396552,0.00154704,2814.8,2814.5,0.8721507]
[1645902396754,0.00154704,2814.8,2814.6,0.5007]
[1645902397151,1.0,2816.0,2814.7,7.149]
[1645902397351,1.0,2816.0,2814.8,0.1419]
[1645902397753,1.3586,2816.0,2814.8,0.1419]
[1645902398399,2.24696,2816.0,2814.8,0.1419]
[1645902398608,0.0050178,2815.5,2814.8,0.1419]
[1645902398802,0.0050178,2815.5,2815.2,1.22365573]
[1645902399007,0.0050178,2815.5,2814.8,0.1419]
[1645902399503,0.0050178,2815.5,2814.7,7.149]
[1645902399504,1.88836,2816.0,2814.7,7.0409]
[1645902399702,0.00501811,2815.3,2814.8,0.142]
[1645902400508,1.88836,2816.0,2814.8,0.142]
[1645902400509,1.88411027,2816.0,2814.8,0.142]
[1645902400910,1.88411027,2816.0,2815.1,1.26649326]
[1645902400911,0.00501823,2815.2,2815.1,1.26649326]
[1645902401711,0.88845,2815.7,2815.1,1.26649326]
[1645902402352,1.142222,2816.0,2815.6,1.14300267]
[1645902402558,0.142222,2816.0,2815.6,1.50160267]
[1645902402762,0.142222,2816.0,2815.6,1.40160267]
[1645902402956,2.40216405,2816.2,2815.7,7.2545]
[1645902403355,2.65216405,2816.2,2815.7,7.2545]
[1645902403557,0.00474744,2815.9,2815.7,7.25219]
[1645902403963,0.883123,2816.7,2815.7,7.25219]
[1645902403964,0.17218635,2817.0,2816.0,12.0]
[1645902404261,8.635e-05,2818.1,2816.9,0.01283483]
[1645902404457,0.88772,2818.0,2817.0,0.24484888]
[1645902404660,0.88772,2818.0,2817.1,7.2533]
[1645902405158,1.7758443,2817.8,2817.1,7.2533]
[1645902405364,0.88793,2817.8,2817.1,7.2533]
[1645902405828,1.0,2817.5,2817.1,7.2533]
[1645902406226,1.0,2817.5,2817.1,7.1533]
[1645902406227,2.0762417,2817.5,2817.1,7.1533]
[1645902406428,3.66442,2817.4,2817.1,7.1533]
[1645902406926,4.66442,2817.4,2817.1,7.1533]
[1645902407732,5.5525361,2817.4,2817.1,7.02944]
[1645902407936,4.44644641,2818.2,2817.1,7.02944]
[1645902407937,0.142153,2817.7,2817.1,7.02944]
[1645902408136,0.00485537,2817.4,2817.2,3.5]
[1645902408332,0.00485537,2817.4,2817.3,0.433]
[1645902408629,0.00485537,2817.4,2817.3,9.13750192]
[1645902408832,0.00485537,2817.4,2817.3,9.08750192]
[1645902409032,0.142153,2817.7,2817.3,9.08750192]
[1645902409234,0.142153,2817.7,2817.4,0.1419]
[1645902409432,0.00481682,2817.5,2817.4,0.1419]
[1645902409654,0.00481682,2817.5,2817.4,0.0419]
[1645902409855,0.00481682,2817.5,2817.4,7.1405]
[1645902410260,0.98752,2818.7,2817.4,10.6405]
[1645902410465,0.88752,2818.7,2817.5,0.433]
[1645902410660,0.88752,2818.7,2817.5,3.933]
[1645902410661,0.0048167,2817.6,2817.5,3.933]
[1645902410860,0.0048167,2817.6,2817.5,0.433]
[1645902411057,0.0048167,2817.6,2817.5,7.5315]
[1645902411460,0.88752,2818.7,2817.5,7.5315]
[1645902411658,0.88752,2818.7,2817.6,3.5]
[1645902411858,0.88752,2818.7,2817.5,7.5315]
[1645902411859,0.00481658,2817.7,2817.5,7.5315]
[1645902412461,0.00481658,2817.7,2817.5,7.4815]
[1645902412659,0.90687147,2818.4,2817.5,7.4815]
[1645902412660,0.88761,2818.4,2817.5,7.4815]
[1645902412965,0.0050111,2817.7,2817.5,7.4815]
[1645902413159,0.0050111,2817.7,2817.5,7.4315]
[1645902413803,0.88761,2818.4,2817.5,7.4315]
[1645902414206,0.0050111,2817.7,2817.5,7.4315]
[1645902414809,0.0050111,2817.7,2817.5,7.0985]
[1645902415006,0.0050111,2817.7,2817.5,7.0485]
[1645902415209,0.88789,2817.9,2817.5,7.0485]
[1645902415407,0.0050111,2817.7,2817.5,7.0485]
[1645902416210,0.8878552,2818.0,2817.5,7.0485]
[1645902416408,0.88782,2817.8,2817.5,7.0485]
[1645902416709,0.40417295,2817.7,2817.5,7.0485]
[1645902417383,0.1,2817.7,2817.5,5.54267779]
[1645902417584,0.88782,2817.8,2817.5,5.54267779]
[1645902417781,0.00417295,2817.7,2817.5,5.54267779]
[1645902418189,0.00417295,2817.7,2817.5,5.49267779]
[1645902418387,0.00417295,2817.7,2817.5,5.44267779]
[1645902418686,0.88782,2817.8,2817.5,5.44267779]
[1645902418892,0.00417295,2817.7,2817.5,5.44267779]
[1645902419887,1.029956,2817.8,2817.5,5.44267779]
[1645902420085,0.00417295,2817.7,2817.5,5.44267779]
[1645902421108,1.0,2817.7,2817.5,5.44267779]
[1645902421307,1.00429982,2817.7,2817.5,5.44267779]
[1645902422311,1.0,2817.7,2817.5,5.44267779]
[1645902422510,1.00429982,2817.7,2817.5,5.44267779]
[1645902423416,1.0,2817.7,2817.5,5.44267779]
[1645902423813,1.00429982,2817.7,2817.5,5.44267779]
[1645902424415,15.5,2817.6,2816.7,2.7789]
[1645902424662,1.7761497,2817.5,2816.7,2.7789]
[1645902425060,1.3,2817.4,2816.7,2.7789]
[1645902425460,3.5,2817.3,2816.1,8.02339523]
[1645902425672,3.5,2817.3,2815.3,0.19558961]
[1645902425673,0.8881274,2817.1,2816.0,2.8552]
[1645902425869,0.88829,2816.9,2815.3,7.9732]
[1645902426064,0.88829,2816.9,2815.3,2.8552]
[1645902426263,1.00428018,2816.8,2815.3,2.8552]
[1645902426466,4.50428018,2816.8,2815.9,1.03059884]
[1645902426666,1.00428018,2816.8,2815.9,1.03059884]
[1645902427167,0.88816,2816.6,2815.9,1.03059884]
[1645902427369,0.00428018,2816.5,2815.9,1.03059884]
[1645902428413,0.88816,2816.6,2815.9,1.03059884]
[1645902428611,0.00428274,2816.3,2815.9,1.03059884]
[1645902428815,0.00428274,2816.3,2815.9,1.02480184]
[1645902429219,0.00428274,2816.3,2815.3,2.8552]
[1645902429419,3.5,2816.5,2815.3,2.8552]
[1645902429618,1.77672,2816.3,2815.3,2.8552]
[1645902429818,0.00428274,2816.2,2815.3,2.8552]
[1645902430216,0.00428274,2816.2,2815.3,3.93313368]
[1645902430420,0.00428274,2816.2,2815.4,7.1029]
[1645902430618,1.77672,2816.3,2815.4,7.1029]
[1645902431021,0.00428251,2816.0,2815.4,7.1029]
[1645902431818,0.88834,2816.1,2815.4,7.1029]
[1645902432267,0.00428285,2816.0,2815.4,7.1029]
[1645902432867,0.00428285,2816.0,2815.4,8.49902398]
[1645902433068,0.88834,2816.1,2815.4,8.49902398]
[1645902433269,0.88834,2816.1,2815.4,7.1029]
[1645902433470,0.25,2816.0,2815.4,7.0829]
[1645902433673,0.25428285,2816.0,2815.4,7.0829]
[1645902434270,0.25,2816.0,2815.4,7.0829]
[1645902434568,0.25428285,2816.0,2815.4,7.0829]
[1645902434771,0.25428285,2816.0,2815.5,1.26891106]
[1645902434969,0.25428285,2816.0,2815.4,7.0829]
[1645902435573,0.25,2816.0,2815.4,7.0829]
[1645902435816,3.75428249,2816.0,2815.4,7.0829]
[1645902436014,5.83123249,2816.0,2815.4,7.0829]
[1645902436221,7.84913594,2816.0,2815.4,7.0829]
[1645902436415,7.69913594,2816.0,2815.4,7.0829]
[1645902436616,7.69485345,2816.0,2815.4,7.0829]
[1645902437016,7.69913594,2816.0,2815.4,7.0829]
[1645902437316,0.8886163,2815.8,2815.4,7.0829]
[1645902437515,7.0546663,2815.8,2815.4,7.0829]
[1645902437716,3.5546663,2815.8,2815.4,7.0829]
[1645902437916,0.88861,2815.7,2815.4,7.0829]
[1645902438723,0.88862,2815.6,2815.4,7.0829]
[1645902438919,1.77716,2815.6,2815.4,7.0829]
[1645902439319,1.88861,2815.7,2815.4,7.0829]
[1645902440165,1.88861,2815.7,2815.4,7.0629]
[1645902440780,1.88861,2815.7,2815.5,3.5]
[1645902440781,1.0,2815.7,2815.5,3.5]
[1645902440970,0.00428266,2816.0,2815.5,3.5]
[1645902441375,0.00428266,2816.0,2815.5,3.8586]
[1645902441566,0.0021571,2816.7,2815.5,3.8586]
[1645902441770,0.0021571,2816.7,2816.2,1.16623029]
[1645902441970,0.0021571,2816.7,2815.5,3.5]
[1645902442171,0.88821,2816.5,2815.4,7.2048]
[1645902442371,0.8883823,2816.4,2815.4,7.0629]
[1645902442570,1.7768,2816.3,2815.4,7.0629]
[1645902442973,0.1,2816.6,2816.2,1.43009982]
[1645902443171,1.0021571,2816.7,2815.5,3.5]
[1645902443407,0.0021571,2816.7,2815.4,7.0629]
[1645902443607,0.88823,2816.4,2815.4,7.2048]
[1645902443810,0.88823,2816.4,2815.4,7.0629]
[1645902444312,0.00428314,2816.0,2815.5,3.5]
[1645902444520,0.00428314,2816.0,2815.6,0.5005]
[1645902444714,0.00428314,2816.0,2815.8,0.3586]
[1645902444910,0.00428314,2816.0,2815.9,3.5]
[1645902445113,0.00428314,2816.0,2815.9,0.1419]
[1645902445317,1.33257758,2817.6,2816.0,0.01112589]
[1645902445518,7.79827758,2817.8,2816.1,0.9335]
[1645902445717,6.4657,2817.8,2816.1,1.16489458]
[1645902445919,0.1,2817.7,2816.1,12.11489458]
[1645902446220,0.1,2817.7,2816.4,4.99768641]
[1645902446418,0.012,2818.0,2817.8,1.21073328]
[1645902447864,0.0162818,2818.0,2817.8,1.19073328]
[1645902448464,0.0162818,2818.0,2817.5,0.3586]
[1645902448865,0.012,2818.0,2817.6,7.4968]
[1645902449066,0.0042818,2817.9,2817.6,7.4968]
[1645902449468,0.0042818,2817.9,2817.7,1.25216436]
[1645902449769,0.0042818,2817.9,2817.8,7.1377]
[1645902449969,0.012,2818.0,2817.8,10.6377]
[1645902450168,0.012,2818.0,2817.8,7.1377]
[1645902450568,0.00428183,2817.9,2817.8,10.6377]
[1645902450817,0.00428183,2817.9,2817.8,7.1377]
[1645902451212,0.012,2818.0,2817.8,7.1377]
[1645902451411,0.01628183,2818.0,2817.8,7.1377]
[1645902452416,0.012,2818.0,2817.8,7.1377]
[1645902452816,0.01628183,2818.0,2817.9,3.5]
[1645902453016,0.01628183,2818.0,2817.8,7.1377]
[1645902453615,0.012,2818.0,2817.8,7.1377]
[1645902454017,0.01628182,2818.0,2817.8,7.1377]
[1645902454326,0.0171247,2818.5,2817.9,19.49768641]
[1645902454562,0.0171247,2818.5,2818.0,0.18791129]
[1645902454762,0.0171247,2818.5,2818.2,0.3586]
[1645902454962,1.33257758,2819.5,2818.3,1.67874]
[1645902454963,0.00350624,2819.3,2818.3,1.67874]
[1645902455163,0.00350624,2819.3,2818.4,0.3586]
[1645902455468,0.00350624,2819.3,2818.5,7.136]
[1645902456264,0.89082624,2819.3,2818.5,8.14960744]
[1645902456664,0.89082624,2819.3,2818.5,7.136]
[1645902457472,0.00501348,2819.0,2818.5,7.136]
[1645902457668,0.89244348,2819.0,2818.5,7.136]
[1645902458510,0.88743,2819.0,2818.5,7.136]
[1645902458711,0.00501366,2818.9,2818.5,7.136]
[1645902459722,0.00350624,2819.3,2818.6,3.5]
[1645902459915,0.00501373,2818.8,2818.5,7.136]
[1645902460619,0.00501373,2818.8,2818.7,1.35399851]
[1645902460818,0.00350624,2819.3,2818.7,1.35399851]
[1645902461017,1.0,2819.4,2818.5,7.136]
[1645902461218,0.00501379,2818.8,2818.5,7.136]
[1645902461920,0.00501379,2818.8,2818.5,7.4946]
[1645902462214,0.00350624,2819.3,2819.2,1.06602508]
[1645902462406,0.00350624,2819.3,2818.6,3.933]
[1645902462407,0.00350624,2819.5,2818.8,3.5]
[1645902462608,0.00350624,2819.7,2818.6,6.5404]
[1645902462810,0.1,2819.8,2818.6,6.7572]
[1645902463409,0.00501311,2819.3,2818.6,6.7572]
[1645902463609,0.00501311,2819.3,2819.0,1.28444606]
[1645902464307,0.00501311,2819.3,2818.6,2.8986]
[1645902464510,0.00350624,2819.3,2818.6,2.8986]
[1645902464717,0.00501317,2819.3,2818.7,7.1355]
[1645902464912,0.00851941,2819.3,2818.7,7.1355]
[1645902465111,0.00501317,2819.3,2818.7,7.1355]
[1645902465714,0.88725,2819.4,2818.9,1.14398578]
[1645902465918,0.00501336,2819.1,2818.9,1.50258578]
[1645902466221,0.00501336,2819.1,2818.7,7.1155]
[1645902466419,0.00501336,2819.1,2819.0,7.1547]
[1645902466818,1.77806624,2819.6,2819.0,7.1547]
[1645902467021,0.88727,2819.3,2819.0,7.1547]
[1645902467425,0.00501329,2819.2,2819.0,7.1547]
[1645902467621,0.00501329,2819.2,2819.0,5.50924057]
[1645902468023,0.88727,2819.3,2819.0,5.50924057]
[1645902468425,4.3586,2819.1,2817.8,1.17]
[1645902468623,4.3586,2819.1,2817.7,1.0]
[1645902468624,1.15762,2818.8,2817.7,1.0]
[1645902468923,1.37202,2818.8,2817.8,7.0966]
[1645902469222,0.87202,2818.8,2817.8,7.0966]
[1645902469669,0.00492019,2818.4,2817.8,7.0966]
[1645902469875,1.7755,2818.3,2817.8,7.0966]
[1645902470264,2.3755,2818.3,2817.8,7.0966]
[1645902470463,0.88779,2818.2,2817.8,7.0966]
[1645902470664,1.88779,2818.2,2817.8,7.0966]
[1645902470864,1.19271049,2818.2,2817.8,7.0966]
[1645902471065,1.0,2818.1,2817.8,7.0966]
[1645902471964,1.00492053,2818.1,2817.8,7.0966]
[1645902472768,1.89280053,2818.1,2817.8,7.0966]
[1645902473070,2.18788,2818.1,2817.8,7.0966]
[1645902473315,2.29254706,2818.1,2817.8,7.0966]
[1645902474112,2.28788,2818.1,2817.8,7.0966]
[1645902474314,2.66388,2818.0,2817.8,7.0966]
[1645902474814,0.3,2817.9,2817.8,7.0966]
[1645902476619,3.5517214,2818.0,2817.8,7.0966]
[1645902476817,0.00468401,2818.1,2817.8,7.0966]
[1645902477069,0.00468401,2818.1,2818.0,1.10304463]
[1645902477682,0.00350624,2819.0,2818.0,1.10304463]
[1645902477873,0.8875,2818.7,2818.0,1.10304463]
[1645902478073,0.00468404,2818.2,2818.0,1.10304463]
[1645902478271,0.00468404,2818.2,2817.8,7.0966]
[1645902478772,0.00468404,2818.2,2817.8,7.4552]
[1645902478974,1.77505,2818.8,2817.8,7.4552]
[1645902479177,1.77505,2818.8,2818.3,1.40158165]
[1645902479376,0.8874556,2819.1,2817.9,3.5]
[1645902479377,0.01873356,2818.6,2817.9,3.5]
[1645902479975,0.01873356,2818.6,2818.0,2.7994]
[1645902480181,2.22345362,2819.5,2818.0,2.7994]
[1645902480375,0.00468238,2818.4,2818.1,1.33185526]
[1645902480578,0.89224238,2818.4,2818.0,2.7994]
[1645902480815,0.89224238,2818.4,2817.8,7.0966]
[1645902481306,0.88756,2818.4,2817.8,7.0966]
[1645902481709,0.00468255,2818.2,2817.9,1.06339923]
[1645902481909,0.00468255,2818.2,2817.8,7.0966]
[1645902482514,0.88756,2818.4,2817.8,7.0966]
[1645902482915,0.00468266,2818.1,2817.8,7.0966]
[1645902483716,0.88764,2818.2,2817.8,7.0966]
[1645902484116,0.00468276,2818.1,2817.8,7.0966]
[1645902484962,0.88764,2818.2,2817.8,7.0966]
[1645902485370,0.00468276,2818.1,2817.8,7.0966]
[1645902485565,0.00468276,2818.1,2817.0,0.03430582]
[1645902485773,1.43257758,2818.0,2816.5,2.7454]
[1645902485968,0.88802,2817.6,2816.5,2.7454]
[1645902486166,1.138064,2817.4,2816.5,2.7454]
[1645902486365,2.355864,2817.4,2816.5,2.7454]
[1645902486567,1.4678,2817.4,2816.5,2.7454]
[1645902486769,1.4678,2817.4,2816.8,1.10609888]
[1645902487169,1.4678,2817.4,2816.8,1.46469888]
[1645902487371,0.25,2817.4,2816.8,1.10609888]
[1645902488418,0.25,2817.4,2816.5,2.7454]
[1645902488619,0.88795,2817.2,2816.5,2.7454]
[1645902488820,0.88795,2817.2,2816.5,2.6454]
[1645902489221,0.88795,2817.2,2816.2,0.3586]
[1645902489419,0.88795,2817.2,2816.1,3.5187426]
[1645902489420,0.88795,2817.2,2816.5,1.25148689]
[1645902489822,2.02592,2817.4,2816.5,1.25148689]
[1645902491021,2.02592,2817.4,2816.3,7.1005]
[1645902492371,2.02592,2817.4,2816.3,7.4591]
[1645902492973,2.02592,2817.4,2816.7,1.04397621]
[1645902493183,2.22033758,2817.8,2816.8,14.8086]
[1645902493377,0.0300438,2818.0,2816.9,0.25970042]
[1645902493576,0.0300438,2818.0,2817.1,12.3086]
[1645902493874,0.0300438,2818.0,2817.3,12.3086]
[1645902494075,0.0300438,2818.0,2817.5,0.3586]
[1645902494378,0.0300438,2818.0,2817.7,0.3586]
[1645902494776,0.0300438,2818.0,2817.8,7.0977]
[1645902494977,0.00468269,2818.1,2817.8,7.0977]
[1645902495917,1.33608382,2818.6,2817.8,7.0977]
[1645902496117,0.0046828,2818.1,2817.8,7.0977]
[1645902496815,0.78910908,2818.1,2817.8,7.0977]
[1645902497016,0.78442628,2818.1,2817.8,7.0977]
[1645902497221,0.78910908,2818.1,2817.8,7.0977]
[1645902498228,0.78442628,2818.1,2817.8,7.0977]
[1645902498423,0.78862489,2818.1,2817.8,7.0977]
[1645902499223,0.78862489,2818.1,2817.9,1.16872243]
[1645902499427,0.78442628,2818.1,2817.9,1.16872243]
[1645902499672,0.78862489,2818.1,2817.9,1.16872243]
[1645902499871,0.02769288,2818.0,2817.8,7.0977]
[1645902501376,0.02769288,2818.0,2817.9,1.15364539]
[1645902501775,0.02769288,2818.0,2817.9,8.25114539]
[1645902502980,0.02769288,2818.0,2817.9,11.75114539]
[1645902505226,0.02769288,2818.0,2817.9,8.25114539]
[1645902505428,0.02769288,2818.0,2817.9,11.75114539]
[1645902505628,0.02769288,2818.0,2817.9,8.25114539]
[1645902506831,0.02769288,2818.0,2817.9,7.0975]
[1645902509770,0.02769288,2818.0,2817.9,7.0961425]
[1645902513032,4.56273508,2818.7,2817.9,7.0961425]
[1645902513033,1.34280672,2819.0,2818.3,22.8086]
[1645902513241,1.34280672,2819.5,2818.7,0.01266323]
[1645902513429,1.79040896,2819.7,2818.7,0.01266323]
[1645902513430,1.34280672,2819.7,2818.7,0.01266323]
[1645902513630,1.34280672,2819.7,2819.5,1.1972249]
[1645902513836,1.34280672,2819.7,2818.7,0.18638985]
[1645902514029,1.79256606,2819.9,2818.7,1.0]
[1645902514030,1.34280672,2819.8,2818.7,1.0]
[1645902514231,1.34280672,2819.8,2818.8,7.0966]
[1645902514663,2.23205382,2819.9,2818.8,7.0966]
[1645902515268,0.0014787,2819.5,2818.8,10.5966]
[1645902515467,0.0014787,2819.5,2819.3,1.20749296]
[1645902515864,0.0014787,2819.5,2818.8,10.5966]
[1645902516268,1.34280672,2819.7,2818.8,7.0966]
[1645902516479,0.00488282,2819.3,2818.8,7.0966]
[1645902517069,0.00488282,2819.3,2818.8,8.14668617]
[1645902517473,1.34280672,2819.6,2818.8,7.0966]
[1645902517679,1.59280672,2819.6,2818.8,7.0966]
[1645902517872,0.00488282,2819.2,2818.8,7.0966]
[1645902518439,8.282e-05,2819.2,2819.0,0.26384026]
[1645902518629,1.70140672,2820.8,2819.3,0.00071718]
[1645902518825,1.86360575,2820.9,2819.3,0.00071718]
[1645902518826,2.34280672,2820.9,2819.4,0.8867]
[1645902519033,2.34280672,2820.9,2819.9,1.0]
[1645902519224,2.34280672,2820.9,2819.5,6.3314]
[1645902519424,2.34280672,2820.9,2820.0,1.0275665]
[1645902519622,0.0034917,2820.8,2820.1,7.0933]
[1645902520026,0.0048616,2820.6,2820.1,7.0933]
[1645902521028,1.34629842,2820.8,2820.1,7.0933]
[1645902521229,0.0048616,2820.5,2820.1,7.0933]
[1645902522272,1.34629842,2820.8,2820.1,7.0933]
[1645902522484,0.0048616,2820.4,2820.1,7.0933]
[1645902522680,0.0048616,2820.4,2820.1,5.55949865]
[1645902522879,1.44280672,2820.3,2820.1,5.55949865]
[1645902523274,1.29280672,2820.2,2820.1,5.55949865]
[1645902523473,1.39280672,2820.2,2820.1,5.55949865]
[1645902523876,2.65737593,2820.0,2819.3,0.00071718]
[1645902524074,1.077,2819.8,2819.3,0.00071718]
[1645902524872,1.077,2819.6,2819.3,0.00071718]
[1645902525079,1.077,2819.4,2819.3,0.00071718]
[1645902525274,1.377,2819.4,2819.3,0.00071718]
[1645902525474,1.477,2819.4,2819.3,0.00071718]
[1645902526108,2.36448,2819.4,2819.3,0.00071718]
[1645902527214,3.54456108,2819.4,2819.3,0.00071718]
[1645902527615,4.26448,2819.4,2819.3,0.00071718]
[1645902527815,3.377,2819.4,2819.3,0.00071718]
[1645902528016,1.077,2819.2,2818.5,0.00495759]
[1645902528214,1.077,2819.2,2817.5,3.6419]
[1645902528215,1.077,2819.1,2817.5,3.6419]
[1645902528516,1.077,2819.0,2818.5,0.00495759]
[1645902529413,1.077,2819.0,2817.7,4.04063303]
[1645902529673,1.9679674,2819.0,2818.5,0.00495728]
[1645902529871,1.9644757,2819.0,2818.5,0.00495728]
[1645902530669,1.077,2818.7,2817.7,0.54063303]
[1645902530872,1.077,2818.7,2818.5,0.00495728]
[1645902531873,1.077,2818.7,2818.0,0.1419]
[1645902532071,1.077,2818.7,2818.5,0.00495731]
[1645902533079,1.077,2818.7,2818.0,0.1419]
[1645902533309,1.077,2818.7,2818.5,0.00495731]
[1645902534311,1.077,2818.7,2817.9,7.2385]
[1645902534514,1.077,2818.7,2818.5,0.00495731]
[1645902535512,1.077,2818.7,2817.9,7.25020824]
[1645902535716,2.48137237,2818.7,2818.5,0.00495731]
[1645902535915,1.077,2818.7,2818.5,0.00495731]
[1645902536514,1.964617,2818.6,2818.5,0.00495731]
[1645902536714,1.964617,2818.6,2817.9,7.10830824]
[1645902537077,1.077,2818.3,2817.9,7.10830824]
[1645902537268,1.027,2818.3,2817.9,7.10830824]
[1645902538070,1.027,2818.3,2818.0,0.00495793]
[1645902538968,1.027,2818.3,2817.9,7.10830824]
[1645902539369,1.027,2818.3,2818.0,0.00495787]
[1645902540170,1.027,2818.3,2817.9,7.0966]
[1645902540575,1.027,2818.3,2818.0,0.00495787]
[1645902540815,1.027,2818.2,2818.0,0.00495787]
[1645902541418,1.027,2818.2,2817.9,7.03195787]
[1645902541623,1.127,2818.1,2817.9,4.66869975]
[1645902541916,1.127,2818.1,2816.7,0.01984047]
[1645902541917,1.027,2817.8,2816.7,0.01984047]
[1645902542121,7.0,2817.9,2816.7,0.01984047]
[1645902542122,1.027,2817.3,2816.7,0.01984047]
[1645902542723,1.027,2817.3,2816.6,2.9858]
[1645902543119,1.027,2817.2,2816.6,2.9858]
[1645902543319,1.027,2817.0,2816.6,2.9858]
[1645902543520,1.027,2817.0,2816.1,0.7505]
[1645902543720,1.027,2817.0,2816.1,0.5005]
[1645902544568,1.027,2817.0,2816.1,14.9505]
[1645902544761,1.027,2817.0,2816.1,0.7688998]
[1645902544961,1.027,2816.8,2816.1,0.1419]
[1645902545560,1.027,2816.8,2816.0,50.01112589]
[1645902546166,1.9151888,2816.8,2816.0,50.01112589]
[1645902546365,1.027,2816.4,2816.0,50.01112589]
[1645902546563,1.027,2816.4,2816.3,0.00496004]
[1645902547571,1.027,2816.4,2816.0,50.01112589]
[1645902547773,1.027,2816.4,2816.2,0.0049601]
[1645902547968,0.88825,2816.5,2816.4,0.57483006]
[1645902551214,0.88824,2816.7,2816.4,0.57483006]
[1645902551215,0.88814,2816.7,2816.4,0.57483006]
[1645902551418,0.88785,2818.0,2816.6,0.3586]
[1645902551620,0.88785,2818.0,2816.8,0.3586]
[1645902551817,3.2037,2818.2,2816.6,3.5]
[1645902552081,0.1,2818.1,2816.6,3.5]
[1645902552270,0.25,2818.0,2817.0,1.30003505]
[1645902552469,0.88798,2817.6,2816.6,3.5]
[1645902552772,1.13795,2817.4,2817.3,0.0049588]
[1645902553470,1.13795,2817.4,2816.6,1.31734257]
[1645902553767,1.13795,2817.4,2816.4,0.57483006]
[1645902553967,2.02598,2817.4,2816.4,0.57483006]
[1645902554170,0.88803,2817.2,2816.4,0.57483006]
[1645902554977,1.7759,2817.6,2816.7,0.00493881]
[1645902555173,0.88771,2818.2,2816.7,11.38793881]
[1645902555370,3.2008,2818.3,2816.8,17.47149916]
[1645902555577,0.00488356,2818.6,2816.9,0.61390461]
[1645902555820,0.00488356,2818.6,2817.1,0.212531]
[1645902556021,7.3181,2818.7,2817.9,1.17828241]
[1645902556227,0.00488521,2818.6,2817.9,1.17828241]
[1645902556420,0.00488521,2818.6,2818.0,0.24693513]
[1645902556620,0.00488521,2818.6,2818.0,2.7311]
[1645902556818,0.00488521,2818.6,2818.1,7.0965]